bitfinex/quotes_SOLUSD_20220208
["timestamp","ask_amount","ask_price","bid_price","bid_amount"]
[1644334311393,42.42835311,111.93,111.82,47.7214]
[1644334311987,42.42835311,111.93,111.83,40.20348199]
[1644334312595,42.42835311,111.93,111.82,36.9414]
[1644334312793,55.84285311,111.93,111.82,23.5292]
[1644334313394,58.31461066,111.93,111.78,47.4888]
[1644334313694,58.31461066,111.93,111.76,42.85526219]
[1644334313695,13.4198,111.88,111.76,42.85526219]
[1644334313896,34.9684236,111.87,111.76,42.85526219]
[1644334314098,37.07617909,111.87,111.75,13.4205]
[1644334314392,34.9684236,111.87,111.75,13.4205]
[1644334314593,40.9684236,111.87,111.75,13.4205]
[1644334314792,40.9684236,111.87,111.75,26.30827374]
[1644334314995,40.9684236,111.87,111.76,43.06434195]
[1644334315196,6.0,111.87,111.77,13.4182]
[1644334315396,0.03017017,111.88,111.77,93.87708698]
[1644334315594,34.4483,111.97,111.78,1.85777374]
[1644334315595,0.03017017,111.9,111.78,1.85777374]
[1644334315794,27.43135452,111.97,111.78,1.85777374]
[1644334315795,0.03017017,111.88,111.8,44.705]
[1644334315993,0.03017017,111.9,111.81,10.78]
[1644334316195,2.47175755,111.96,111.81,10.78]
[1644334316196,0.03017017,111.92,111.82,23.72967562]
[1644334316395,47.20507249,111.95,111.84,13.41]
[1644334316396,47.23524266,111.95,111.84,13.41]
[1644334316595,47.23524266,111.95,111.85,38.43177649]
[1644334316596,0.03017017,111.94,111.85,38.43177649]
[1644334316795,47.20507249,111.95,111.85,38.43177649]
[1644334319299,47.20507249,111.95,111.85,51.84057649]
[1644334319697,49.31282798,111.95,111.85,51.84057649]
[1644334319899,55.31282798,111.95,111.85,51.84057649]
[1644334320103,53.20507249,111.95,111.85,51.84057649]
[1644334320305,66.61647249,111.95,111.85,38.43177649]
[1644334320902,69.08823004,111.95,111.85,38.43177649]
[1644334321302,69.08823004,111.95,111.84,10.78]
[1644334321904,71.19598553,111.95,111.8,122.40057374]
[1644334322102,9.44468954,111.94,111.81,10.78]
[1644334322304,59.91974858,111.93,111.81,10.78]
[1644334322502,64.49926162,111.93,111.81,10.78]
[1644334322703,2.10775549,111.92,111.81,10.78]
[1644334322905,9.04851304,111.92,111.8,75.8358]
[1644334323115,4.94669238,111.91,111.79,24.8376]
[1644334323308,7.08461804,111.91,111.79,24.8376]
[1644334323608,2.10775549,111.9,111.79,24.8376]
[1644334323801,35.34232235,111.89,111.79,24.8376]
[1644334324002,35.34232235,111.89,111.76,10.78]
[1644334324203,44.39283539,111.89,111.76,10.78]
[1644334324409,39.92183539,111.89,111.76,10.78]
[1644334324602,37.45007784,111.89,111.76,10.78]
[1644334324803,42.72052927,111.87,111.76,10.78]
[1644334325002,42.72052927,111.87,111.75,11.161]
[1644334325203,2.10775549,111.86,111.75,11.161]
[1644334326005,43.19842917,111.85,111.75,59.65678071]
[1644334326407,43.19842917,111.85,111.75,11.161]
[1644334326606,2.10775549,111.84,111.75,11.161]
[1644334327007,2.10775549,111.84,111.73,77.3018]
[1644334327406,43.39588121,111.83,111.73,34.77333953]
[1644334327807,38.75070968,111.81,111.73,34.77333953]
[1644334328407,38.75070968,111.81,111.72,48.8541]
[1644334329208,38.75070968,111.81,111.72,49.1041]
[1644334329630,44.75070968,111.81,111.72,48.8541]
[1644334329830,44.75070968,111.81,111.67,74.52083155]
[1644334330030,44.75070968,111.81,111.68,10.78]
[1644334330430,46.85846517,111.81,111.68,10.78]
[1644334330633,60.28646517,111.81,111.68,10.78]
[1644334330830,60.28646517,111.81,111.68,24.2095]
[1644334333536,60.28646517,111.81,111.66,88.3678]
[1644334333835,64.76046517,111.81,111.65,195.6963]
[1644334334037,64.76046517,111.81,111.65,34.0509]
[1644334334435,60.28646517,111.81,111.65,34.0509]
[1644334335039,15.255,111.8,111.62,101.8827]
[1644334335337,13.4379,111.76,111.62,28.6919]
[1644334335537,17.9139,111.76,111.62,28.6919]
[1644334335740,36.62880315,111.75,111.62,24.2169]
[1644334336437,36.62880315,111.75,111.63,29.08148837]
[1644334336837,34.52104766,111.75,111.63,57.64522776]
[1644334337041,34.52104766,111.75,111.64,29.35711324]
[1644334337341,34.52104766,111.75,111.65,65.08400809]
[1644334337538,34.52104766,111.75,111.66,10.78]
[1644334337737,34.52104766,111.75,111.66,24.88111324]
[1644334337942,34.52104766,111.75,111.67,29.08148837]
[1644334338143,40.52104766,111.75,111.67,39.86148837]
[1644334338345,40.52104766,111.75,111.67,40.11148837]
[1644334338544,40.52104766,111.75,111.67,24.4611]
[1644334338742,40.52104766,111.75,111.64,1.85777374]
[1644334338940,40.52104766,111.75,111.64,10.78]
[1644334339542,53.95614766,111.75,111.65,37.87129552]
[1644334339743,40.52104766,111.75,111.66,10.78]
[1644334339942,40.52104766,111.75,111.67,28.92272205]
[1644334340542,40.52104766,111.75,111.67,39.70272205]
[1644334340744,40.52104766,111.75,111.67,39.95272205]
[1644334341343,40.52104766,111.75,111.67,53.38412205]
[1644334342056,40.52104766,111.75,111.67,53.13412205]
[1644334342745,40.52104766,111.75,111.67,53.38412205]
[1644334343448,34.52104766,111.75,111.67,55.24688444]
[1644334344248,13.4294,111.8,111.67,55.24688444]
[1644334344449,6.0,111.8,111.67,55.24688444]
[1644334344649,71.71685549,111.83,111.67,53.13412205]
[1644334344850,6.0,111.8,111.67,53.13412205]
[1644334345049,6.0,111.8,111.67,24.2114]
[1644334345251,2.10775549,111.79,111.67,10.78]
[1644334345453,46.88645549,111.79,111.67,10.78]
[1644334345750,2.10775549,111.78,111.65,62.4302]
[1644334345953,43.3759206,111.77,111.65,106.35524816]
[1644334346152,43.3759206,111.77,111.65,116.88524816]
[1644334346353,45.48367609,111.77,111.65,116.88524816]
[1644334346751,13.4336,111.76,111.65,116.88524816]
[1644334346952,45.36298795,111.75,111.65,118.74801055]
[1644334347452,45.36298795,111.75,111.65,132.2683762]
[1644334347852,45.36298795,111.75,111.65,146.36948944]
[1644334349055,45.36298795,111.75,111.65,121.2383762]
[1644334349257,45.36298795,111.75,111.65,106.10524816]
[1644334349455,45.36298795,111.75,111.64,98.6202]
[1644334349657,45.36298795,111.75,111.64,23.3494]
[1644334350255,2.10775549,111.74,111.62,8.685]
[1644334350465,36.09098078,111.73,111.62,8.685]
[1644334350656,42.09098078,111.73,111.62,8.685]
[1644334350857,44.19873627,111.73,111.62,8.685]
[1644334351060,48.67573627,111.73,111.62,8.685]
[1644334351356,44.19873627,111.73,111.62,8.685]
[1644334351757,44.19873627,111.73,111.63,36.58340419]
[1644334352258,44.19873627,111.73,111.62,8.685]
[1644334352757,13.4411,111.71,111.62,8.685]
[1644334353464,34.25056722,111.7,111.62,42.8778102]
[1644334354359,40.25056722,111.7,111.62,42.8778102]
[1644334354559,40.25056722,111.7,111.62,34.1928102]
[1644334354760,40.25056722,111.7,111.62,47.6305102]
[1644334355160,40.25056722,111.7,111.62,13.4377]
[1644334355361,40.25056722,111.7,111.62,15.55046239]
[1644334355661,1.22671587,111.75,111.63,10.78]
[1644334355963,1.22671587,111.76,111.66,13.4321]
[1644334356160,1.22671587,111.76,111.66,24.2121]
[1644334356365,7.22671587,111.76,111.66,24.2121]
[1644334356664,37.87656585,111.75,111.66,63.29189409]
[1644334358160,37.87656585,111.75,111.66,63.54189409]
[1644334360162,43.87656585,111.75,111.66,63.54189409]
[1644334361664,37.87656585,111.75,111.66,63.54189409]
[1644334361862,37.87656585,111.75,111.66,63.29189409]
[1644334362362,1.22671587,111.78,111.67,10.78]
[1644334362564,1.22671587,111.77,111.7,13.4288]
[1644334362763,1.22671587,111.79,111.71,10.78]
[1644334362962,8.23705452,111.86,111.71,10.78]
[1644334362963,1.22671587,111.81,111.71,10.78]
[1644334363162,1.22671587,111.82,111.71,35.6894]
[1644334363361,46.49753564,111.81,111.72,27.71422348]
[1644334363562,46.49753564,111.81,111.73,10.78]
[1644334363861,46.49753564,111.81,111.73,24.2023]
[1644334365465,52.49753564,111.81,111.73,24.2023]
[1644334366569,52.49753564,111.81,111.74,35.19746964]
[1644334366772,52.49753564,111.81,111.74,59.40076964]
[1644334367171,6.0,111.81,111.74,59.40076964]
[1644334367372,1.22671587,111.84,111.74,59.40076964]
[1644334367773,20.65031587,111.84,111.74,59.40076964]
[1644334367971,14.65031587,111.84,111.74,59.40076964]
[1644334368172,36.36067276,111.83,111.74,59.40076964]
[1644334368381,36.36067276,111.83,111.74,24.2033]
[1644334368575,38.46842825,111.83,111.74,10.78]
[1644334368773,39.69514412,111.83,111.74,10.78]
[1644334368972,53.12004412,111.83,111.72,24.2056]
[1644334369173,59.12004412,111.83,111.68,22.5265]
[1644334369379,36.1288143,111.8,111.69,47.9846914]
[1644334369575,37.35553017,111.8,111.69,47.9846914]
[1644334369774,39.46328566,111.8,111.69,47.9846914]
[1644334370175,38.23656979,111.8,111.69,47.9846914]
[1644334370676,13.4294,111.79,111.7,13.4278]
[1644334370875,47.51755289,111.78,111.7,13.4278]
[1644334371077,2.10775549,111.8,111.71,18.80932617]
[1644334371278,1.22671587,111.81,111.71,29.58932617]
[1644334371478,1.22671587,111.82,111.71,29.58932617]
[1644334371675,8.10775549,111.83,111.71,29.58932617]
[1644334371676,7.22671587,111.83,111.71,29.83932617]
[1644334371884,6.0,111.83,111.71,43.26702617]
[1644334372078,42.33399082,111.82,111.71,43.26702617]
[1644334373682,1.22671587,111.84,111.71,43.26702617]
[1644334373883,1.22671587,111.85,111.75,13.4206]
[1644334374084,1.22671587,111.87,111.75,13.4206]
[1644334374281,0.03017017,111.89,111.75,13.4206]
[1644334374282,1.22671587,111.88,111.76,12.64276239]
[1644334374488,0.03017017,111.89,111.76,88.90876239]
[1644334374489,1.22671587,111.89,111.76,88.90876239]
[1644334374685,47.4925636,111.88,111.77,57.99832154]
[1644334374884,47.4925636,111.88,111.77,53.52732154]
[1644334375083,47.4925636,111.88,111.79,13.4155]
[1644334375282,47.4925636,111.88,111.8,10.78]
[1644334375885,53.4925636,111.88,111.8,10.78]
[1644334376184,69.01921909,111.88,111.78,24.1982]
[1644334376989,53.4925636,111.88,111.78,24.1982]
[1644334377185,53.4925636,111.88,111.78,24.4482]
[1644334379901,55.60031909,111.88,111.78,24.1982]
[1644334380503,55.60031909,111.88,111.76,35.9669]
[1644334380802,61.29803496,111.88,111.76,35.9669]
[1644334381005,56.82703496,111.88,111.76,35.9669]
[1644334381204,56.82703496,111.88,111.76,79.35654926]
[1644334381405,70.24613496,111.88,111.76,79.35654926]
[1644334381605,53.4925636,111.88,111.77,10.78]
[1644334381903,53.4925636,111.88,111.79,13.4179]
[1644334382505,2.10775549,111.87,111.76,22.546]
[1644334382705,2.10775549,111.87,111.72,33.07541225]
[1644334382706,6.57875549,111.87,111.72,37.2625]
[1644334382906,7.80547136,111.87,111.72,24.2055]
[1644334383111,3.33447136,111.86,111.7,24.7369]
[1644334383313,1.22671587,111.84,111.7,35.5169]
[1644334383512,37.29091893,111.83,111.7,35.5169]
[1644334383707,13.4281,111.81,111.7,10.78]
[1644334383906,4.474,111.8,111.67,26.06608787]
[1644334384107,12.00671587,111.81,111.67,26.06608787]
[1644334384307,7.80847136,111.8,111.65,0.024]
[1644334384506,34.98229094,111.79,111.65,42.25222723]
[1644334384708,13.4329,111.77,111.65,0.024]
[1644334384908,13.4329,111.77,111.64,0.024]
[1644334385107,15.256,111.76,111.63,0.024]
[1644334385308,18.59047136,111.76,111.63,0.024]
[1644334385508,2.10775549,111.75,111.63,0.024]
[1644334385707,52.92759397,111.74,111.63,0.024]
[1644334386110,55.03534946,111.74,111.63,0.024]
[1644334386710,48.45159397,111.74,111.63,24.241]
[1644334386911,48.45159397,111.74,111.64,17.14885026]
[1644334387111,48.45159397,111.74,111.64,27.92885026]
[1644334387318,48.45159397,111.74,111.65,1.86276239]
[1644334387511,48.45159397,111.74,111.64,26.06608787]
[1644334387913,48.45159397,111.74,111.63,0.024]
[1644334388220,61.88749397,111.74,111.63,0.024]
[1644334389817,61.88749397,111.74,111.63,13.4612]
[1644334390014,67.88749397,111.74,111.63,13.4612]
[1644334391216,67.88749397,111.74,111.63,0.024]
[1644334391816,78.16724946,111.74,111.63,0.024]
[1644334392017,15.256,111.73,111.61,0.024]
[1644334392215,13.4449,111.7,111.61,0.024]
[1644334392420,17.9229,111.7,111.59,0.024]
[1644334392616,45.46121366,111.69,111.58,4.5]
[1644334393018,45.46121366,111.69,111.58,4.476]
[1644334393618,51.46121366,111.69,111.56,0.024]
[1644334393822,13.4452,111.67,111.56,36.01406141]
[1644334394117,13.4452,111.67,111.57,0.024]
[1644334394318,13.4452,111.67,111.55,93.6614]
[1644334394919,13.4452,111.67,111.55,141.81672534]
[1644334396217,13.4452,111.67,111.55,141.56672534]
[1644334396420,13.4452,111.67,111.55,13.47]
[1644334396621,13.4452,111.67,111.55,0.024]
[1644334397018,24.2252,111.67,111.55,0.024]
[1644334397219,24.2252,111.67,111.52,10.804]
[1644334397421,13.4452,111.67,111.55,1.86618284]
[1644334397618,13.4452,111.67,111.55,1.89018284]
[1644334397822,13.4452,111.67,111.55,0.024]
[1644334399825,6.0,111.67,111.56,1.86618284]
[1644334400131,45.46121366,111.69,111.57,10.78]
[1644334400323,45.46121366,111.69,111.58,20.22265548]
[1644334400522,15.259,111.76,111.59,10.78]
[1644334400722,59.4537,111.78,111.61,13.4374]
[1644334400925,13.4361,111.75,111.62,10.78]
[1644334401122,13.4361,111.75,111.62,0.024]
[1644334401322,19.4361,111.75,111.62,0.024]
[1644334401525,36.82673756,111.74,111.61,0.024]
[1644334401722,36.82673756,111.74,111.63,0.024]
[1644334401922,38.93449305,111.74,111.61,0.024]
[1644334402123,15.257,111.73,111.61,0.024]
[1644334402325,15.257,111.73,111.59,0.024]
[1644334402523,2.10775549,111.72,111.59,0.024]
[1644334403626,15.257,111.73,111.59,0.024]
[1644334403828,13.441,111.71,111.59,0.024]
[1644334404026,24.221,111.71,111.58,0.024]
[1644334404227,2.10775549,111.7,111.56,0.024]
[1644334404432,15.259,111.69,111.56,0.024]
[1644334404633,15.259,111.69,111.55,0.024]
[1644334404828,47.16394462,111.68,111.55,0.024]
[1644334405030,28.7049,111.67,111.55,0.024]
[1644334405331,75.01265549,111.67,111.55,0.024]
[1644334405527,2.10775549,111.66,111.55,0.024]
[1644334405727,39.81441316,111.64,111.55,0.024]
[1644334405930,39.81441316,111.64,111.53,4.501]
[1644334406232,26.33955549,111.63,111.53,4.501]
[1644334406432,4.481,111.62,111.53,4.477]
[1644334406631,4.481,111.62,111.5,0.024]
[1644334406632,17.36875549,111.62,111.48,0.024]
[1644334406829,17.36875549,111.62,111.5,0.024]
[1644334407129,13.4532,111.61,111.51,18.77643734]
[1644334407329,95.43961316,111.64,111.51,18.77643734]
[1644334407528,95.43961316,111.64,111.52,0.024]
[1644334407729,2.10775549,111.63,111.52,0.024]
[1644334407932,101.43961316,111.64,111.52,0.024]
[1644334408529,13.451,111.63,111.5,0.024]
[1644334408732,10.78,111.62,111.52,0.024]
[1644334408931,12.88775549,111.62,111.49,0.024]
[1644334409131,10.78,111.62,111.49,0.024]
[1644334409332,10.78,111.62,111.49,44.36125224]
[1644334409534,13.4539,111.61,111.5,0.024]
[1644334409733,13.4539,111.61,111.48,0.024]
[1644334409931,2.10775549,111.6,111.48,0.024]
[1644334410132,15.262,111.59,111.46,0.024]
[1644334410329,10.78,111.59,111.43,0.024]
[1644334410536,42.11985248,111.58,111.43,37.96547745]
[1644334410933,2.10775549,111.57,111.43,10.804]
[1644334411130,26.34735549,111.57,111.43,0.024]
[1644334411630,2.10775549,111.56,111.43,13.99375706]
[1644334411830,42.11985248,111.58,111.44,10.78]
[1644334412031,42.11985248,111.58,111.45,0.024]
[1644334412232,42.11985248,111.58,111.46,15.263]
[1644334412431,42.11985248,111.58,111.46,42.67358641]
[1644334412631,42.11985248,111.58,111.47,13.41682935]
[1644334412832,48.11985248,111.58,111.48,38.09163838]
[1644334413034,48.11985248,111.58,111.48,52.06139544]
[1644334413232,48.11985248,111.58,111.48,52.31139544]
[1644334413732,48.11985248,111.58,111.49,13.4514]
[1644334413934,42.11985248,111.58,111.49,13.4514]
[1644334414135,42.11985248,111.58,111.49,13.7014]
[1644334414834,42.11985248,111.58,111.49,13.4514]
[1644334415035,42.11985248,111.58,111.48,52.08539544]
[1644334415235,42.11985248,111.58,111.48,52.06139544]
[1644334415639,48.11985248,111.58,111.48,38.09163838]
[1644334416038,6.0,111.58,111.48,65.51319544]
[1644334416237,46.3297,111.63,111.49,4.483]
[1644334416436,6.0,111.63,111.5,0.44]
[1644334416639,6.0,111.63,111.51,15.261]
[1644334416836,6.0,111.63,111.51,29.48075706]
[1644334417138,46.10771547,111.62,111.52,41.77234376]
[1644334417338,46.10771547,111.62,111.53,10.78]
[1644334417536,52.10771547,111.62,111.53,24.226]
[1644334417736,52.10771547,111.62,111.53,24.476]
[1644334418242,52.10771547,111.62,111.53,24.226]
[1644334418440,52.10771547,111.62,111.53,10.78]
[1644334419040,52.10771547,111.62,111.53,5.96392]
[1644334419841,6.0,111.62,111.53,5.96392]
[1644334420041,6.0,111.62,111.53,6.21392]
[1644334420242,13.4465,111.67,111.53,8.08012803]
[1644334420445,12.00671587,111.69,111.54,0.024]
[1644334420651,10.78,111.69,111.54,10.804]
[1644334420845,40.84656415,111.68,111.55,13.4442]
[1644334421042,40.84656415,111.68,111.56,0.024]
[1644334421243,1.22671587,111.67,111.55,0.024]
[1644334421442,10.78,111.67,111.55,0.024]
[1644334421643,10.78,111.67,111.53,0.024]
[1644334421841,12.00671587,111.67,111.53,0.024]
[1644334422743,13.4478,111.66,111.53,13.4706]
[1644334423044,13.4478,111.66,111.54,0.024]
[1644334423449,15.55555549,111.66,111.54,0.024]
[1644334423847,22.78227136,111.66,111.54,0.024]
[1644334424044,35.93451587,111.66,111.53,0.024]
[1644334424245,33.56227136,111.66,111.53,0.024]
[1644334425145,5.70671587,111.65,111.52,0.024]
[1644334425346,13.4518,111.62,111.52,0.024]
[1644334425548,13.4518,111.62,111.5,49.3281]
[1644334425747,13.4518,111.62,111.47,40.2714748]
[1644334425748,2.10775549,111.61,111.51,0.024]
[1644334425952,41.11621462,111.6,111.5,0.024]
[1644334426148,45.59821462,111.6,111.48,0.024]
[1644334426351,54.57071462,111.6,111.48,0.024]
[1644334426549,54.57071462,111.6,111.48,1.89020803]
[1644334426749,41.11621462,111.6,111.48,12.67020803]
[1644334426970,41.11621462,111.6,111.48,26.88996509]
[1644334427368,41.11621462,111.6,111.48,24.2569]
[1644334427577,41.11621462,111.6,111.48,0.024]
[1644334427970,2.10775549,111.59,111.48,0.024]
[1644334428172,2.10775549,111.59,111.47,36.99731037]
[1644334428371,51.89621462,111.6,111.47,36.99731037]
[1644334428580,51.89621462,111.6,111.48,0.024]
[1644334429773,13.4571,111.58,111.48,0.024]
[1644334429974,13.4571,111.58,111.47,36.99731037]
[1644334430375,13.4571,111.58,111.47,0.024]
[1644334430577,15.56485549,111.58,111.47,0.024]
[1644334430880,15.56485549,111.58,111.45,0.024]
[1644334431085,10.78,111.57,111.45,0.024]
[1644334431275,13.4603,111.55,111.45,35.76710796]
[1644334431485,13.4603,111.55,111.45,35.74310796]
[1644334431877,13.4603,111.55,111.44,146.6653]
[1644334432881,13.4603,111.55,111.45,39.54666045]
[1644334433286,13.4603,111.55,111.44,146.6653]
[1644334433484,2.10775549,111.54,111.44,0.024]
[1644334433686,13.4642,111.52,111.42,0.024]
[1644334433886,13.4642,111.52,111.41,10.804]
[1644334434280,40.59231595,111.51,111.41,35.16828442]
[1644334434686,40.59231595,111.51,111.41,0.024]
[1644334434891,60.05711595,111.51,111.41,0.024]
[1644334435684,62.16487144,111.51,111.41,0.024]
[1644334435985,13.4693,111.47,111.39,0.024]
[1644334436289,13.4693,111.47,111.38,0.024]
[1644334436483,13.4693,111.47,111.37,74.5446]
[1644334436884,44.66244851,111.46,111.38,35.6232046]
[1644334437084,44.66244851,111.46,111.38,35.6472046]
[1644334437285,44.66244851,111.46,111.38,35.6232046]
[1644334438485,13.4673,111.49,111.38,35.6232046]
[1644334438685,81.3152,111.53,111.39,1.86620803]
[1644334438686,55.667,111.53,111.39,1.86620803]
[1644334438889,10.78,111.53,111.39,12.67020803]
[1644334439085,23.9497,111.55,111.39,12.67020803]
[1644334439086,23.9497,111.55,111.4,0.024]
[1644334439286,34.7297,111.55,111.4,0.024]
[1644334439486,36.10400466,111.54,111.4,13.4868]
[1644334439687,10.78,111.53,111.4,13.4868]
[1644334440089,12.88775549,111.53,111.4,13.4868]
[1644334440288,10.78,111.53,111.4,13.7368]
[1644334440490,10.78,111.53,111.4,13.4868]
[1644334440690,24.2423,111.53,111.4,13.4868]
[1644334442589,2.10775549,111.52,111.4,0.024]
[1644334442791,39.09023258,111.49,111.4,0.024]
[1644334442990,39.09023258,111.49,111.39,24.6279]
[1644334443792,52.55693258,111.49,111.39,24.6279]
[1644334444190,52.55693258,111.49,111.38,23.5651]
[1644334444393,54.66468807,111.49,111.38,23.5651]
[1644334444591,54.66468807,111.49,111.38,0.024]
[1644334444792,10.78,111.48,111.38,0.024]
[1644334444994,13.4715,111.45,111.36,0.024]
[1644334445193,13.4715,111.45,111.35,4.486]
[1644334445392,2.10775549,111.44,111.35,4.486]
[1644334445616,8.10775549,111.44,111.35,4.486]
[1644334445798,2.10775549,111.44,111.35,4.486]
[1644334445995,2.10775549,111.44,111.34,0.024]
[1644334445996,2.10775549,111.43,111.34,0.024]
[1644334446195,55.73196448,111.42,111.33,24.334]
[1644334447495,2.10775549,111.41,111.32,0.024]
[1644334447695,13.4781,111.4,111.31,72.9428]
[1644334447996,13.4781,111.4,111.3,0.024]
[1644334448295,13.4781,111.4,111.3,48.27530984]
[1644334448694,13.4781,111.4,111.3,50.14648727]
[1644334448894,55.73176448,111.42,111.3,50.39648727]
[1644334449098,55.73176448,111.42,111.3,61.17648727]
[1644334449099,42.25616448,111.42,111.3,61.17648727]
[1644334449294,48.25616448,111.42,111.3,61.17648727]
[1644334449497,48.25616448,111.42,111.3,60.92648727]
[1644334449894,61.73236448,111.42,111.3,48.27530984]
[1644334450496,61.73236448,111.42,111.3,0.024]
[1644334451297,72.51236448,111.42,111.3,0.024]
[1644334451899,72.51236448,111.42,111.3,1.89517743]
[1644334452299,72.51236448,111.42,111.3,0.024]
[1644334452999,74.62011997,111.42,111.3,0.024]
[1644334454002,72.51236448,111.42,111.3,0.024]
[1644334454501,72.51236448,111.42,111.3,1.89517743]
[1644334455704,72.51236448,111.42,111.3,62.6931799]
[1644334456003,72.51236448,111.42,111.3,60.82200247]
[1644334456403,72.51236448,111.42,111.3,66.82200247]
[1644334457103,72.51236448,111.42,111.3,19.4996]
[1644334457302,72.51236448,111.42,111.3,6.024]
[1644334457505,72.51236448,111.42,111.3,0.024]
[1644334457705,72.51236448,111.42,111.3,6.024]
[1644334458110,72.51236448,111.42,111.3,0.024]
[1644334458707,74.62011997,111.42,111.3,0.024]
[1644334459510,102.25105295,111.42,111.3,0.024]
[1644334459910,4.489,111.41,111.28,0.024]
[1644334460110,13.4853,111.38,111.26,0.024]
[1644334460410,15.271,111.37,111.25,0.024]
[1644334460626,10.78,111.36,111.25,0.024]
[1644334460829,15.272,111.36,111.25,0.024]
[1644334461030,47.89823382,111.35,111.25,0.024]
[1644334461230,58.67823382,111.35,111.24,39.11060313]
[1644334461832,13.4893,111.34,111.24,39.11060313]
[1644334462629,13.4893,111.34,111.24,39.36060313]
[1644334462830,13.4893,111.34,111.24,39.11060313]
[1644334463033,58.67823382,111.35,111.24,41.23175295]
[1644334463929,64.67823382,111.35,111.24,41.23175295]
[1644334464533,78.16213382,111.35,111.24,39.11060313]
[1644334466034,76.16213382,111.35,111.23,0.024]
[1644334466442,76.16213382,111.35,111.22,0.024]
[1644334467440,13.4905,111.31,111.22,0.024]
[1644334467840,2.10775549,111.3,111.17,23.45118781]
[1644334468139,10.78,111.31,111.18,0.024]
[1644334468341,45.09304865,111.29,111.18,37.91052323]
[1644334468540,13.492,111.28,111.18,51.40132323]
[1644334468738,35.43287483,111.27,111.18,51.37732323]
[1644334468940,35.43287483,111.27,111.19,1.87114982]
[1644334469140,35.43287483,111.27,111.2,30.90749434]
[1644334469541,13.4888,111.31,111.2,30.90749434]
[1644334469755,13.4888,111.31,111.2,33.05264416]
[1644334469940,10.78,111.33,111.2,33.05264416]
[1644334470144,23.54,111.35,111.21,0.024]
[1644334470347,23.54,111.35,111.21,10.804]
[1644334470541,38.95321812,111.34,111.22,37.91052323]
[1644334470741,38.95321812,111.34,111.23,0.024]
[1644334470941,38.95321812,111.34,111.22,37.91052323]
[1644334471343,44.95321812,111.34,111.22,39.78167305]
[1644334471847,35.11370764,111.32,111.24,30.90749434]
[1644334472244,35.5933,111.39,111.24,33.03293218]
[1644334472444,35.5933,111.39,111.25,0.024]
[1644334472848,10.78,111.39,111.25,0.024]
[1644334473046,61.84117136,111.42,111.26,26.13633784]
[1644334473249,58.5067,111.42,111.27,37.91052323]
[1644334473450,58.5067,111.42,111.28,0.024]
[1644334473647,60.61445549,111.42,111.28,0.024]
[1644334474247,44.90959973,111.41,111.28,0.024]
[1644334474455,58.38629973,111.41,111.28,13.502]
[1644334474654,12.88775549,111.4,111.29,30.93149434]
[1644334474848,12.88775549,111.4,111.28,0.024]
[1644334475046,12.88775549,111.4,111.26,47.6323]
[1644334475047,2.10775549,111.39,111.27,0.024]
[1644334475449,13.4808,111.37,111.27,13.5039]
[1644334475849,36.71718101,111.36,111.27,57.02798909]
[1644334476648,36.71718101,111.36,111.27,0.024]
[1644334476649,50.19908101,111.36,111.27,0.024]
[1644334476850,50.19908101,111.36,111.26,47.6323]
[1644334477267,52.3068365,111.36,111.25,4.514]
[1644334477450,52.3068365,111.36,111.25,0.024]
[1644334478153,52.3068365,111.36,111.23,0.024]
[1644334478350,63.0868365,111.36,111.23,0.024]
[1644334479350,13.4888,111.32,111.23,0.024]
[1644334479550,13.4888,111.32,111.21,60.6799]
[1644334479753,13.4888,111.32,111.21,47.1932]
[1644334479952,19.4888,111.32,111.21,47.1932]
[1644334480655,35.89958577,111.31,111.21,91.91277687]
[1644334480853,13.489,111.3,111.21,91.91277687]
[1644334481054,38.0474995,111.29,111.21,91.91277687]
[1644334481253,38.0474995,111.29,111.21,47.1692]
[1644334481754,38.0474995,111.29,111.2,23.6859]
[1644334481957,38.0474995,111.29,111.2,37.1744]